fUSD/lending_fUSD_20250403
["ID","MTS","AMOUNT","RATE_DAILY","PERIOD"]
[357077106,1743692700645,-532.06206861,0.00049863,120]
[357077107,1743692700696,-3036.01,0.00049863,120]
[357077108,1743692700746,-619.66391308,0.00049863,120]
[357077109,1743692700795,-500.0,0.00049863,120]
[357077110,1743692700847,-500.0,0.00049863,120]
[357077111,1743692700897,-500.0,0.00049863,120]
[357077112,1743692700948,-1625.45,0.00049863,120]
[357077113,1743692700998,-550.11168912,0.00049863,120]
[357077114,1743692701051,-534.6299448,0.00049863,120]
[357077115,1743692701104,-561.8242858,0.00049863,120]
[357077116,1743692701158,-2914.69,0.00049863,120]
[357077117,1743692701209,-562.43762954,0.00049863,120]
[357077118,1743692701258,-500.0,0.00049863,120]
[357077119,1743692701307,-500.0,0.00049863,120]
[357077120,1743692701358,-500.0,0.00049863,120]
[357077121,1743692701408,-528.75726489,0.00049863,120]
[357077122,1743692701458,-500.0,0.00049863,120]
[357077123,1743692701507,-602.9,0.00049863,120]
[357077124,1743692701560,-2802.27,0.00049863,120]
[357077125,1743692701610,-500.0,0.00049863,120]
[357077126,1743692701663,-500.0,0.00049863,120]
[357077127,1743692701717,-500.0,0.00049863,120]
[357077128,1743692701772,-500.0,0.00049863,120]
[357077129,1743692701825,-2921.81,0.00049863,120]
[357077130,1743692701885,-547.21357261,0.00049863,120]
[357077131,1743692701941,-500.0,0.00049863,120]
[357077132,1743692701996,-500.0,0.00049863,120]
[357077133,1743692702053,-500.0,0.00049863,120]
[357077134,1743692702108,-1239.33,0.00049863,120]
[357077135,1743692702162,-856.26,0.00049863,120]
[357077136,1743692702215,-500.0,0.00049863,120]
[357077137,1743692702267,-2272.59,0.00049863,120]
[357077138,1743692702318,-548.29158105,0.00049863,120]
[357077139,1743692702369,-2580.12,0.00049863,120]
[357077140,1743692702421,-500.0,0.00049863,120]
[357077141,1743692702475,-2661.08,0.00049863,120]
[357077142,1743692702527,-584.70771908,0.00049863,120]
[357077143,1743692702586,-500.0,0.00049863,120]
[357077144,1743692702638,-500.0,0.00049863,120]
[357077145,1743692702812,-500.0,0.00049863,120]
[357077146,1743692702868,-500.0,0.00049863,120]
[357077147,1743692702920,-500.0,0.00049863,120]
[357077148,1743692702972,-500.0,0.00049863,120]
[357077149,1743692703024,-1837.94,0.00049863,120]
[357077150,1743692703093,-517.66372234,0.00049863,120]
[357077151,1743692703155,-500.0,0.00049863,120]
[357077152,1743692703214,-2624.31,0.00049863,120]
[357077153,1743692703273,-2226.43,0.00049863,120]
[357077154,1743692703332,-500.0,0.00049863,120]
[357077155,1743692703393,-517.23398063,0.00049863,120]
[357077156,1743692703457,-2754.91,0.00049863,120]
[357077157,1743692703525,-528.132889,0.00049863,120]
[357077158,1743692703587,-500.0,0.00049863,120]
[357077159,1743692703650,-220.35548061,0.00049863,120]
[357077160,1743692703709,-527.21617412,0.00049863,120]
[357077161,1743692703766,-845.67,0.00049863,120]
[357077162,1743692703826,-500.0,0.00049863,120]
[357077163,1743692703889,-575.69571745,0.00049863,120]
[357077164,1743692703948,-514.22775073,0.00049863,120]
[357077165,1743692704003,-603.43157781,0.00049863,120]
[357077166,1743692704061,-500.0,0.00049863,120]
[357077167,1743692704119,-522.02184019,0.00049863,120]
[357077168,1743692704179,-1475.61,0.00049863,120]
[357077169,1743692704237,-395.49441594,0.00049863,120]
[357077170,1743692704294,-3276.33,0.00049863,120]
[357077171,1743692704353,-571.17758661,0.00049863,120]
[357077172,1743692704410,-500.0,0.00049863,120]
[357077173,1743692704467,-542.62,0.00049863,120]
[357077174,1743692704528,-1388.54,0.00049863,120]
[357077175,1743692704587,-876.13,0.00049863,120]
[357077176,1743692704648,-500.0,0.00049863,120]
[357077177,1743692704702,-500.0,0.00049863,120]
[357077178,1743692704756,-500.0,0.00049863,120]
[357077179,1743692704808,-3299.24,0.00049863,120]
[357077180,1743692704864,-500.0,0.00049863,120]
[357077181,1743692704918,-500.0,0.00049863,120]
[357077182,1743692704973,-500.0,0.00049863,120]
[357077183,1743692705028,-500.0,0.00049863,120]
[357077184,1743692705080,-500.0,0.00049863,120]
[357077185,1743692705132,-500.0,0.00049863,120]
[357077186,1743692705186,-571.3540049,0.00049863,120]
[357077187,1743692705239,-500.0,0.00049863,120]
[357077188,1743692705291,-564.61943883,0.00049863,120]
[357077189,1743692705347,-500.0,0.00049863,120]
[357077190,1743692705401,-500.0,0.00049863,120]
[357077191,1743692705452,-500.0,0.00049863,120]
[357077192,1743692705504,-1676.16,0.00049863,120]
[357077193,1743692705556,-2285.04,0.00049863,120]
[357077194,1743692705612,-500.0,0.00049863,120]
[357077195,1743692705666,-599.40238523,0.00049863,120]
[357077196,1743692705720,-764.13,0.00049863,120]
[357077197,1743692705771,-2040.3,0.00049863,120]
[357077198,1743692705823,-786.8,0.00049863,120]
[357077199,1743692705877,-553.47238789,0.00049863,120]
[357077200,1743692705928,-523.38141077,0.00049863,120]
[357077201,1743692705982,-803.22,0.00049863,120]
[357077202,1743692706035,-500.0,0.00049863,120]
[357077203,1743692706093,-500.0,0.00049863,120]
[357077204,1743692706145,-500.0,0.00049863,120]
[357077205,1743692706198,-500.0,0.00049863,120]
[357077206,1743692706250,-568.83944776,0.00049863,120]
[357077207,1743692706306,-500.0,0.00049863,120]
[357077208,1743692706360,-4292.15,0.00049863,120]
[357077209,1743692706413,-587.43,0.00049863,120]
[357077210,1743692706470,-500.0,0.00049863,120]
[357077211,1743692706519,-3236.91,0.00049863,120]
[357077212,1743692706569,-500.0,0.00049863,120]
[357077213,1743692706620,-500.0,0.00049863,120]
[357077214,1743692706673,-3014.6,0.00049863,120]
[357077215,1743692706727,-500.0,0.00049863,120]
[357077216,1743692706779,-1463.87,0.00049863,120]
[357077217,1743692706831,-500.0,0.00049863,120]
[357077218,1743692706884,-200.6382444,0.00049863,120]
[357077219,1743692706937,-3215.99,0.00049863,120]
[357077220,1743692706990,-3201.0,0.00049863,120]
[357077221,1743692707042,-537.0377736,0.00049863,120]
[357077222,1743692707096,-500.0,0.00049863,120]
[357077223,1743692707149,-482.52130784,0.00049863,120]
[357077224,1743692707199,-500.0,0.00049863,120]
[357077225,1743692707250,-560.21097464,0.00049863,120]
[357077226,1743692707304,-500.0,0.00049863,120]
[357077227,1743692707355,-582.04951999,0.00049863,120]
[357077228,1743692707409,-500.0,0.00049863,120]
[357077229,1743692707465,-500.0,0.00049863,120]
[357077230,1743692707518,-500.0,0.00049863,120]
[357077231,1743692707570,-556.9413491,0.00049863,120]
[357077232,1743692707623,-523.41101748,0.00049863,120]
[357077233,1743692707676,-500.0,0.00049863,120]
[357077234,1743692707732,-539.63739487,0.00049863,120]
[357077235,1743692707783,-500.0,0.00049863,120]
[357077236,1743692707843,-500.0,0.00049863,120]
[357077237,1743692707896,-500.0,0.00049863,120]
[357077238,1743692707951,-2823.25,0.00049863,120]
[357077239,1743692708004,-500.0,0.00049863,120]
[357077240,1743692708060,-500.0,0.00049863,120]
[357077241,1743692708114,-546.68789625,0.00049863,120]
[357077242,1743692708168,-2322.92,0.00049863,120]
[357077243,1743692708224,-535.27,0.00049863,120]
[357077244,1743692708276,-527.91960007,0.00049863,120]
[357077245,1743692708329,-501.29,0.00049863,120]
[357077246,1743692708380,-500.0,0.00049863,120]
[357077247,1743692708433,-2835.58,0.00049863,120]
[357077248,1743692708486,-915.78,0.00049863,120]
[357077249,1743692708696,-544.72158934,0.00049863,120]
[357077250,1743692708749,-651.54,0.00049863,120]
[357077251,1743692708803,-500.0,0.00049863,120]
[357077252,1743692708859,-216.55007919,0.00049863,120]
[357077253,1743692708913,-500.0,0.00049863,120]
[357077254,1743692708969,-2504.11,0.00049863,120]
[357077255,1743692709037,-500.0,0.00049863,120]
[357077256,1743692709094,-1000.0,0.00049863,120]
[357077257,1743692709163,-500.0,0.00049863,120]
[357077258,1743692709221,-340.45178784,0.00049863,120]
[357077259,1743692709279,-500.0,0.00049863,30]
[357077260,1743692709336,-500.0,0.00049863,120]
[357077261,1743692709393,-500.0,0.00049863,120]
[357077262,1743692709452,-500.0,0.00049863,120]
[357077263,1743692709509,-910.1,0.00049863,120]
[357077264,1743692709567,-548.46576789,0.00049863,120]
[357077265,1743692709628,-3196.24,0.00049863,120]
[357077266,1743692709693,-500.0,0.00049863,120]
[357077267,1743692709754,-500.0,0.00049863,120]
[357077268,1743692709815,-500.0,0.00049863,120]
[357077269,1743692709868,-500.0,0.00049863,120]
[357077270,1743692709922,-193.97574059,0.00049863,120]
[357077271,1743692709973,-3157.32,0.00049863,120]
[357077272,1743692710027,-500.0,0.00049863,120]
[357077273,1743692710079,-500.0,0.00049863,120]
[357077274,1743692710133,-500.0,0.00049863,120]
[357077275,1743692710190,-500.0,0.00049863,120]
[357077276,1743692710251,-500.0,0.00049863,120]
[357077277,1743692710309,-500.0,0.00049863,120]
[357077278,1743692710364,-523.07176656,0.00049863,120]
[357077279,1743692710423,-2853.02965654,0.00049863,30]
[357077280,1743692710485,-500.0,0.00049879,30]
[357077281,1743692710541,-500.0,0.00049885,120]
[357077282,1743692710602,-212.86263,0.00049888,30]
[357077283,1743692710655,-2000.0,0.0004989,32]
[357077284,1743692710708,-69474.33144109,0.000499,120]
[357077285,1743692710764,-1654.870119,0.000499,119]
[357077286,1743692710815,-661.84000445,0.000499,120]
[357077287,1743692710868,-500.0,0.00049905,30]
[357077288,1743692710921,-942.62448555,0.00049943,30]
[357077289,1743692710974,-500.0,0.00049972,120]
[357077290,1743692711033,-500.0,0.00049972,120]
[357077291,1743692711088,-500.0,0.00049972,120]
[357077292,1743692711144,-500.0,0.00049999,120]
[357077293,1743692711200,-500.0,0.00049999,120]
[357077294,1743692711255,-602.90798277,0.00049999,120]
[357077295,1743692711311,-500.0,0.00049999,120]
[357077296,1743692711365,-500.0,0.00049999,120]
[357077297,1743692711424,-602.90798277,0.00049999,120]
[357077298,1743692711486,-602.90798277,0.00049999,120]
[357077299,1743692711547,-165.17803546,0.00049999,120]
[357077300,1743692711611,-602.90798277,0.00049999,120]
[357077301,1743692711673,-500.0,0.00049999,120]
[357077302,1743692711737,-350.0,0.00049999,120]
[357077303,1743692711800,-663.19878105,0.00049999,120]
[357077304,1743692711867,-663.19878105,0.00049999,120]
[357077305,1743692711926,-663.19878105,0.00049999,120]
[357077306,1743692711981,-158.52796385,0.00049999,120]
[357077307,1743692712034,-362.02280069,0.00049999,120]
[357077308,1743692712090,-422.66661877,0.00049999,120]
[357077309,1743692712143,-177.5938193,0.00049999,31]
[357077310,1743692712197,-839.14472286,0.00049999,120]
[357077311,1743692712248,-839.14472286,0.00049999,120]
[357077312,1743692712300,-839.14472286,0.00049999,120]
[357077313,1743692712356,-839.14472286,0.00049999,120]
[357077314,1743692712412,-839.14472286,0.00049999,120]
[357077315,1743692712466,-839.14472286,0.00049999,120]
[357077316,1743692712521,-839.14472286,0.00049999,120]
[357077317,1743692712575,-839.14472286,0.00049999,120]
[357077318,1743692712630,-839.14472286,0.00049999,120]
[357077319,1743692712691,-839.14472286,0.00049999,120]
[357077320,1743692712745,-839.14472286,0.00049999,120]
[357077321,1743692712800,-839.14472286,0.00049999,120]
[357077322,1743692712857,-839.14472286,0.00049999,120]
[357077323,1743692712913,-839.14472286,0.00049999,120]
[357077324,1743692712967,-839.14472286,0.00049999,120]
[357077325,1743692713022,-839.14472286,0.00049999,120]
[357077326,1743692713075,-839.14472286,0.00049999,120]
[357077327,1743692713130,-839.14472286,0.00049999,120]
[357077328,1743692713187,-839.14472286,0.00049999,120]
[357077329,1743692713243,-839.14472286,0.00049999,120]
[357077330,1743692713298,-839.14472286,0.00049999,120]
[357077331,1743692713355,-839.14472286,0.00049999,120]
[357077332,1743692713409,-839.14472286,0.00049999,120]
[357077333,1743692713460,-839.14472286,0.00049999,120]
[357077334,1743692713509,-839.14472286,0.00049999,120]
[357077335,1743692713561,-839.14472286,0.00049999,120]
[357077336,1743692713612,-839.14472286,0.00049999,120]
[357077337,1743692713668,-839.14472286,0.00049999,120]
[357077338,1743692713722,-839.14472286,0.00049999,120]
[357077339,1743692713776,-839.14472286,0.00049999,120]
[357077340,1743692713826,-839.14472286,0.00049999,120]
[357077341,1743692713878,-839.14472286,0.00049999,120]
[357077342,1743692713928,-839.14472286,0.00049999,120]
[357077343,1743692713979,-839.14472286,0.00049999,120]
[357077344,1743692714030,-839.14472286,0.00049999,120]
[357077345,1743692714082,-839.14472286,0.00049999,120]
[357077346,1743692714134,-839.14472286,0.00049999,120]
[357077347,1743692714185,-839.14472286,0.00049999,120]
[357077348,1743692714238,-839.14472286,0.00049999,120]
[357077349,1743692714290,-839.14472286,0.00049999,120]
[357077350,1743692714344,-833.73088593,0.00049999,120]
[357077351,1743692714396,-833.73088593,0.00049999,120]
[357077352,1743692714450,-833.73088593,0.00049999,120]
[357077353,1743692714676,-833.73088593,0.00049999,120]
[357077354,1743692714731,-833.73088593,0.00049999,120]
[357077355,1743692714784,-833.73088593,0.00049999,120]
[357077356,1743692714838,-833.73088593,0.00049999,120]
[357077357,1743692714894,-833.73088593,0.00049999,120]
[357077358,1743692714947,-833.73088593,0.00049999,120]
[357077359,1743692715003,-833.73088593,0.00049999,120]
[357077360,1743692715058,-833.73088593,0.00049999,120]
[357077361,1743692715115,-833.73088593,0.00049999,120]
[357077362,1743692715168,-833.73088593,0.00049999,120]
[357077363,1743692715220,-833.73088593,0.00049999,120]
[357077364,1743692715274,-833.73088593,0.00049999,120]
[357077365,1743692715326,-833.73088593,0.00049999,120]
[357077366,1743692715376,-833.73088593,0.00049999,120]
[357077367,1743692715428,-833.73088593,0.00049999,120]
[357077368,1743692715478,-833.73088593,0.00049999,120]
[357077369,1743692715528,-833.73088593,0.00049999,120]
[357077370,1743692715580,-833.73088593,0.00049999,120]
[357077371,1743692715632,-833.73088593,0.00049999,120]
[357077372,1743692715682,-833.73088593,0.00049999,120]
[357077373,1743692715734,-833.73088593,0.00049999,120]
[357077374,1743692715791,-833.73088593,0.00049999,120]
[357077375,1743692715843,-833.73088593,0.00049999,120]
[357077376,1743692715896,-50000.0,0.0005,50]
[357077377,1743692715948,-215.1606181,0.0005,120]
[357077378,1743692715999,-424990.65666131,0.0005,120]
[357077379,1743692738640,107989.30620856,0.00034885,30]
[357077380,1743692754578,51277.57185859,0.00034885,30]
[357077381,1743692843094,-795.26699385,0.00025916,2]
[357077382,1743692843117,-250.0,0.00025966,2]
[357077383,1743692843139,-314.68002428,0.00026016,2]
[357077384,1743692849248,-3634.31997572,0.00026016,2]
[357077385,1743692849272,-151.0,0.00026016,2]
[357077386,1743692849297,-166.0,0.00026016,2]
[357077387,1743692849321,-962.138,0.00026016,2]
[357077388,1743692849345,-299.088,0.00026016,2]
[357077389,1743692849368,-248.582,0.00026016,2]
[357077390,1743692849392,-1118.0,0.00026016,2]
[357077391,1743692849420,-157.01,0.00026849,2]
[357077392,1743692849448,-321.69373229,0.00027397,2]
[357077393,1743692849471,-325.0,0.000274,2]
[357077394,1743692849493,-250.0,0.00028508,2]
[357077395,1743692849516,-250.0,0.00028562,2]
[357077396,1743692849540,-399.0415,0.000319,2]
[357077397,1743692849563,-806.0,0.00031999,2]
[357077398,1743692849585,-1795.03790526,0.00032,2]
[357077399,1743692852124,-941.36371245,0.00032,2]
[357077422,1743693032037,-3949.0,0.00024615,2]
[357077423,1743693032047,-219.762,0.00024615,2]
[357077424,1743693032056,-250.0,0.00027,2]
[357077425,1743693032067,-300.0,0.00027397,30]
[357077426,1743693032077,-300.0,0.00029,2]
[357077427,1743693032087,-350.0,0.00031,2]
[357077428,1743693032096,-300.0,0.00031999,2]
[357077429,1743693032105,-29922.45908029,0.00032,2]
[357077430,1743693032115,-500.0,0.00032795,2]
[357077431,1743693032124,-400.0,0.00033,2]
[357077432,1743693032134,-300.0,0.00033287,30]
[357077433,1743693032144,-2470.1376,0.00033849,2]
[357077434,1743693032154,-2000.0,0.0003397,120]
[357077435,1743693032163,-250.0,0.00033971,2]
[357077436,1743693032173,-2000.0,0.00033971,2]
[357077437,1743693032183,-23900.0,0.00033998,2]
[357077438,1743693032191,-12648.9,0.00034029,2]
[357077439,1743693032201,-223.13,0.00034095,2]
[357077440,1743693032210,-150.0,0.00034095,2]
[357077441,1743693032220,-1012.1113197,0.00034108,2]
[357077442,1743693032232,-1502.07295287,0.00034108,2]
[357077443,1743693032304,-1044.27572743,0.00034108,2]
[357077444,1743693032314,-219.52,0.00034166,2]
[357077445,1743693032324,-1321.93,0.00034173,2]
[357077446,1743693032334,-62.93756128,0.00034185,7]
[357077447,1743693035293,1000.0,0.00034905,30]
[357077453,1743693037958,-246.83,0.00033971,2]
[357077454,1743693037968,-87.06243872,0.00034185,7]
[357077455,1743693037978,-1000.0,0.000342,2]
[357077456,1743693037988,-299.99,0.000342,30]
[357077457,1743693037998,-1467.86669546,0.000342,10]
[357077458,1743693038009,-298.96393016,0.000342,10]
[357077459,1743693038146,-8142.72822001,0.000342,10]
[357077474,1743693040013,-26091.02115437,0.000342,10]
[357077475,1743693040024,-1504.75,0.000342,2]
[357077476,1743693040034,-9631.33,0.000342,2]
[357077477,1743693040044,-200.0,0.00034209,2]
[357077478,1743693040054,-1551.32,0.00034209,2]
[357077479,1743693040065,-223.13,0.00034266,2]
[357077480,1743693040075,-1921.64,0.0003429,2]
[357077481,1743693040085,-200.0,0.0003429,2]
[357077482,1743693040094,-150.99,0.0003429,2]
[357077483,1743693040104,-4681.27,0.0003429,2]
[357077484,1743693040114,-663.55,0.00034349,2]
[357077485,1743693040124,-398.3,0.00034389,2]
[357077486,1743693040134,-1000.0,0.00034729,2]
[357077487,1743693040143,-556.5935,0.00034785,2]
[357077488,1743693040153,-488.6252053,0.00034801,4]
[357077489,1743693040163,-268.4372,0.00034899,2]
[357077490,1743693040172,-1203.41,0.000349,2]
[357077491,1743693040182,-166.42,0.00035,2]
[357077492,1743693040192,-450.0,0.00035,2]
[357077493,1743693040202,-166.66,0.00035016,2]
[357077494,1743693040211,-444.61,0.00035157,2]
[357077495,1743693040222,-444.61,0.00035157,2]
[357077496,1743693040232,-254.49,0.00035157,2]
[357077497,1743693040243,-4318.66924361,0.00035249,2]
[357077498,1743693040253,-150.0,0.00035616,2]
[357077499,1743693040263,-167.0485,0.00035774,2]
[357077500,1743693040272,-2500.0,0.00035775,2]
[357077501,1743693040281,-3731.41347629,0.00035775,2]
[357077502,1743693040292,-3603.0557,0.00035784,2]
[357077503,1743693040303,-500.0,0.00035784,2]
[357077504,1743693040313,-5158.6343,0.00035784,2]
[357077505,1743693040323,-2170.0335,0.00035784,2]
[357077506,1743693040332,-1000.0,0.00035784,2]
[357077507,1743693040342,-851.2652,0.00035785,2]
[357077508,1743693040352,-1859.1013616,0.00035848,8]
[357077509,1743693040362,-3200.68,0.00035865,2]
[357077510,1743693040372,-49033.53269651,0.00035875,2]
[357077511,1743693040396,-555.56549226,0.00035875,2]
[357077512,1743693040419,-1713.45011572,0.00035875,2]
[357077513,1743693040430,-616.24617576,0.00035875,2]
[357077545,1743693044115,-27121.94691653,0.00035875,2]
[357077558,1743693045928,-3908.2473,0.00035149,2]
[357077559,1743693045938,-1214.53,0.00035454,2]
[357077560,1743693045948,-59881.37741922,0.00035875,2]
[357077561,1743693045957,-150.0,0.00035878,2]
[357077562,1743693045967,-150.0,0.00035878,2]
[357077563,1743693045976,-150.0,0.00035878,2]
[357077564,1743693045986,-4325.31509588,0.00035878,2]
[357077565,1743693045995,-4478.36017931,0.00035878,2]
[357077566,1743693046005,-3497.17328575,0.00035878,2]
[357077567,1743693046014,-151.0,0.00035884,7]
[357077568,1743693046023,-151.0,0.00035884,7]
[357077569,1743693046033,-151.0,0.00035884,7]
[357077570,1743693046043,-151.0,0.00035884,5]
[357077571,1743693046052,-151.0,0.00035884,7]
[357077572,1743693046062,-151.0,0.00035884,7]
[357077573,1743693046072,-151.0,0.00035884,7]
[357077574,1743693046082,-151.0,0.00035884,7]
[357077575,1743693046091,-151.61,0.00035895,2]
[357077576,1743693046100,-3200.68,0.00035895,2]
[357077577,1743693046110,-16594.90350983,0.00035905,90]
[357077578,1743693046130,-1041.98123531,0.00035905,90]
[357077579,1743693046141,-401.2242045,0.00035905,90]
[357077580,1743693046153,-1064.36055697,0.00035905,90]
[357077581,1743693046166,-2457.804388,0.00035905,90]
[357077582,1743693046178,-8136.1,0.00035905,90]
[357077583,1743693046190,-1294.60289156,0.00035905,90]
[357077584,1743693046202,-421684.11272656,0.00035905,90]
[357077585,1743693046212,-354.14318087,0.00035948,2]
[357077586,1743693046221,-583.86490084,0.00036,7]
[357077587,1743693046231,-443.79,0.00036116,2]
[357077588,1743693046242,-301.83,0.00036116,2]
[357077589,1743693046251,-330.91702303,0.00036464,2]
[357077590,1743693046261,-150.0,0.00036554,2]
[357077591,1743693046270,-13892.2118816,0.0003659,3]
[357077592,1743693046279,-6863.16636548,0.0003659,3]
[357077593,1743693046289,-15077.80359233,0.000366,2]
[357077594,1743693046299,-157.01,0.00036862,2]
[357077595,1743693046308,-6863.16636548,0.0003699,3]
[357077596,1743693046318,-1000.0,0.00037,2]
[357077598,1743693046328,-500.0,0.00037,2]
[357077600,1743693046338,-3731.41347621,0.00037022,2]
[357077601,1743693046348,-166.66,0.00037266,2]
[357077602,1743693046357,-150.0,0.00037491,2]
[357077603,1743693046366,-1214.53,0.00037718,2]
[357077604,1743693046375,-157.64,0.00037863,2]
[357077606,1743693046384,-13892.2118816,0.0003789,3]
[357077607,1743693046394,-6863.16636548,0.0003789,3]
[357077608,1743693046403,-9304.45,0.000379,2]
[357077609,1743693046413,-185.99,0.0003792,2]
[357077610,1743693046423,-152.0,0.00038197,3]
[357077611,1743693046432,-209.0,0.000382,2]
[357077612,1743693046441,-3731.41347621,0.00038269,2]
[357077613,1743693046453,-6863.16636548,0.00038281,3]
[357077614,1743693046463,-150.0,0.00038428,2]
[357077615,1743693046472,-491.61,0.00038443,2]
[357077616,1743693046482,-877.0,0.00039,5]
[357077617,1743693046491,-550.0,0.00039,2]
[357077619,1743693046501,-1000.0,0.0003907,2]
[357077620,1743693046510,-300.0,0.00039177,30]
[357077621,1743693046520,-150.0,0.00039366,2]
[357077622,1743693046529,-13892.2118816,0.0003938,3]
[357077623,1743693046538,-20589.4990964,0.0003938,3]
[357077624,1743693046548,-151.0,0.0003939,14]
[357077625,1743693046558,-153.640328,0.0003939,14]
[357077626,1743693046568,-151.0,0.0003939,14]
[357077627,1743693046578,-151.0,0.0003939,14]
[357077628,1743693046587,-151.0,0.0003939,14]
[357077629,1743693046597,-151.0,0.0003939,14]
[357077630,1743693046606,-151.0,0.0003939,14]
[357077631,1743693046616,-151.0,0.0003939,14]
[357077632,1743693046625,-13892.2118816,0.00039507,3]
[357077633,1743693046635,-3731.41347621,0.00039517,2]
[357077634,1743693046644,-150.98617533,0.0003959,2]
[357077635,1743693046654,-31086.19,0.0003959,6]
[357077636,1743693046664,-500.0,0.000396,3]
[357077637,1743693046674,-503.45970058,0.00039673,5]
[357077638,1743693046683,-500.0,0.00039673,5]
[357077639,1743693046693,-501.98251027,0.00039673,5]
[357077640,1743693046702,-500.0,0.00039673,5]
[357077641,1743693046712,-500.0,0.00039673,5]
[357077642,1743693046721,-507.23498983,0.00039673,5]
[357077643,1743693046732,-500.0,0.00039673,5]
[357077644,1743693046742,-6863.16636548,0.0003968,3]
[357077645,1743693046751,-151.61,0.0003968,2]
[357077646,1743693046762,-151.0,0.0003969,14]
[357077647,1743693046772,-151.0,0.0003969,14]
[357077648,1743693046782,-151.0,0.0003969,14]
[357077649,1743693046791,-151.0,0.0003969,14]
[357077650,1743693046801,-151.0,0.0003969,14]
[357077651,1743693046811,-151.0,0.0003969,14]
[357077652,1743693046820,-153.375843,0.0003969,14]
[357077653,1743693046829,-153.501416,0.0003969,14]
[357077654,1743693046840,-151.0,0.0003969,14]
[357077655,1743693046850,-55568.8475264,0.0003969,3]
[357077656,1743693046860,-45923.12475869,0.0003969,3]
[357077662,1743693216250,346679.53195464,0.00034905,30]
[357077663,1743693520118,1242.22181333,0.00034908,60]
[357077686,1743693954612,1121.08482806,0.0001495,2]
[357077687,1743694035129,-1397.87578787,0.000199,7]
[357077688,1743694052121,-402.12421213,0.000199,7]
[357077689,1743694052145,-160.0,0.00019999,2]
[357077690,1743694052168,-300.0,0.00019999,2]
[357077691,1743694052195,-8235.40411997,0.0002,2]
[357077692,1743694082053,57374.62625908,0.00015,2]
[357077697,1743694117793,1022.25898971,0.000149,2]
[357077698,1743694124739,150.0,0.00032,120]
[357077700,1743694153650,150.0,0.00034884,30]
[357077701,1743694159942,1149.7,0.00032,120]
[357077713,1743694232212,-2002.65164984,0.000199,2]
[357077714,1743694232224,-598.20233049,0.000199,2]
[357077715,1743694232236,-2373.44372306,0.000199,2]
[357077716,1743694232246,-885.60447678,0.000199,2]
[357077717,1743694232461,-827.06447016,0.0001999,2]
[357077718,1743694232511,-1050.0,0.0001999,2]
[357077719,1743694232523,-1838.71549141,0.0001999,2]
[357077720,1743694232544,-1577.36276331,0.0001999,2]
[357077721,1743694232556,-1182.38936097,0.0001999,2]
[357077722,1743694232565,-16630.50582574,0.00019999,2]
[357077723,1743694232575,-73562.69897409,0.0002,2]
[357077724,1743694232586,-419.99283975,0.0002,2]
[357077725,1743694232602,-475.49962009,0.0002,2]
[357077726,1743694232614,-5764.44618781,0.0002,2]
[357077727,1743694232629,-3777.71549535,0.0002,2]
[357077728,1743694232658,-27035.92304979,0.0002,2]
[357077767,1743694238197,-500.0,0.0002,2]
[357077769,1743694238840,-243752.97326678,0.0002,2]
[357077770,1743694238852,-4070.00000002,0.0002,2]
[357077771,1743694238863,-8334.58838871,0.0002,2]
[357077772,1743694238873,-16656.34498582,0.0002,2]
[357077773,1743694238884,-81651.0,0.0002,2]
[357077774,1743694238896,-504.00014922,0.0002,2]
[357077776,1743694240364,-9160.70058075,0.0002,2]